fUSD/lending_fUSD_20260616
["ID","MTS","AMOUNT","RATE_DAILY","PERIOD"]
[425146927,1781549454000,-784.43422086,0.0002,2]
[425146906,1781549454000,-151.0,0.0001944,2]
[425146921,1781549454000,-159.0,0.0002,2]
[425146898,1781549454000,-151.0,0.0001944,2]
[425146897,1781549454000,-151.0,0.0001944,2]
[425146900,1781549454000,-151.0,0.0001944,2]
[425146894,1781549454000,-151.0,0.0001944,2]
[425146902,1781549454000,-151.0,0.0001944,2]
[425146901,1781549454000,-151.0,0.0001944,2]
[425146895,1781549454000,-151.0,0.0001944,2]
[425146896,1781549454000,-151.0,0.0001944,2]
[425146899,1781549454000,-151.0,0.0001944,2]
[425146904,1781549454000,-151.0,0.0001944,2]
[425146914,1781549454000,-1600.0,0.00019845,2]
[425146903,1781549454000,-151.0,0.0001944,2]
[425146905,1781549454000,-151.0,0.0001944,2]
[425146907,1781549454000,-151.0,0.0001944,2]
[425146909,1781549454000,-250.0,0.00019452,2]
[425146908,1781549454000,-151.0,0.0001944,2]
[425146913,1781549454000,-317.56,0.000196,2]
[425146910,1781549454000,-249.0,0.00019452,2]
[425146911,1781549454000,-726.16259651,0.00019468,2]
[425146912,1781549454000,-1694.93,0.00019596,2]
[425146919,1781549454000,-1372.0,0.0002,2]
[425146923,1781549454000,-151.0,0.0002,2]
[425146916,1781549454000,-166.66,0.0001994,2]
[425146920,1781549454000,-154.0,0.0002,2]
[425146918,1781549454000,-400.0,0.0002,2]
[425146924,1781549454000,-1248.0,0.0002,2]
[425146917,1781549454000,-219.718659,0.0002,2]
[425146915,1781549454000,-249.0,0.00019886,2]
[425146965,1781549454000,-150.0,0.00021698,2]
[425146945,1781549454000,-1372.0,0.00021,2]
[425146953,1781549454000,-189.0,0.00021,2]
[425146997,1781549454000,-197.8364782,0.00022407,2]
[425146986,1781549454000,-174.0,0.00022,2]
[425146988,1781549454000,-317.56,0.00022,7]
[425146993,1781549454000,-2022.002002,0.00022046,14]
[425146990,1781549454000,-614.7,0.00022,2]
[425146989,1781549454000,-229.0,0.00022,2]
[425146991,1781549454000,-256.0,0.00022,2]
[425146992,1781549454000,-220.0,0.00022,2]
[425146994,1781549454000,-235.1,0.00022353,2]
[425146995,1781549454000,-197.8364782,0.00022407,2]
[425146996,1781549454000,-197.8364782,0.00022407,2]
[425146999,1781549454000,-316.31,0.00022466,2]
[425147001,1781549454000,-1853.0,0.00022466,2]
[425146998,1781549454000,-231.91512586,0.00022407,2]
[425147002,1781549454000,-166.66,0.00022489,2]
[425147008,1781549454000,-179.0,0.00022976,5]
[425147006,1781549454000,-203.74605054,0.00022875,2]
[425147005,1781549454000,-329.391006,0.00022655,14]
[425147004,1781549454000,-2000.0,0.00022513,2]
[425147003,1781549454000,-1599.12,0.000225,14]
[425147009,1781549454000,-1372.0,0.00023,2]
[425147007,1781549454000,-1415.81536338,0.00022875,2]
[425147011,1781549454000,-404.0,0.00023,2]
[425147010,1781549454000,-154.0,0.00023,2]
[425147013,1781549454000,-1311.0,0.00023,2]
[425147014,1781549454000,-189.0,0.00023,2]
[425147012,1781549454000,-247.0,0.00023,2]
[425146963,1781549454000,-3558.0,0.00021698,2]
[425147000,1781549454000,-310.63,0.00022466,2]
[425146987,1781549454000,-189.0,0.00022,2]
[425146946,1781549454000,-154.0,0.00021,2]
[425146984,1781549454000,-247.0,0.00022,2]
[425146955,1781549454000,-256.0,0.00021,2]
[425146956,1781549454000,-220.0,0.00021,2]
[425146985,1781549454000,-1311.0,0.00022,2]
[425146961,1781549454000,-869.3812221,0.000214,2]
[425146962,1781549454000,-869.3812221,0.000216,2]
[425146959,1781549454000,-200.0,0.00021207,2]
[425146957,1781549454000,-869.3812221,0.000212,2]
[425146958,1781549454000,-241.53,0.00021205,2]
[425146960,1781549454000,-166.66,0.00021215,2]
[425146966,1781549454000,-6078.0,0.00021698,2]
[425146972,1781549454000,-500.0,0.00022,3]
[425146969,1781549454000,-166.66,0.00021852,2]
[425146968,1781549454000,-1976.036871,0.00021824,2]
[425146964,1781549454000,-1359.0,0.00021698,2]
[425146973,1781549454000,-500.0,0.00022,3]
[425146978,1781549454000,-450.0,0.00022,2]
[425146981,1781549454000,-160.0,0.00022,2]
[425146982,1781549454000,-404.0,0.00022,2]
[425146983,1781549454000,-159.0,0.00022,2]
[425146980,1781549454000,-154.0,0.00022,2]
[425146967,1781549454000,-3645.0,0.00021698,2]
[425146979,1781549454000,-1372.0,0.00022,2]
[425146970,1781549454000,-869.3812221,0.000219,2]
[425146975,1781549454000,-500.0,0.00022,3]
[425146977,1781549454000,-500.0,0.00022,3]
[425146974,1781549454000,-500.0,0.00022,3]
[425146971,1781549454000,-5000.0,0.00021918,2]
[425146976,1781549454000,-500.0,0.00022,3]
[425147053,1781549455000,-317.56,0.000244,7]
[425147062,1781549455000,-3645.0,0.00024698,2]
[425147055,1781549455000,-1000.0,0.00024538,2]
[425147061,1781549455000,-6078.0,0.00024698,2]
[425147051,1781549455000,-39249.43668086,0.00024238,7]
[425147047,1781549455000,-487.37,0.00024174,2]
[425147057,1781549455000,-1000.0,0.00024658,2]
[425147058,1781549455000,-8837.81,0.00024658,2]
[425147050,1781549455000,-26237.30336291,0.00024238,7]
[425147046,1781549455000,-278.02,0.00024174,2]
[425147054,1781549455000,-2000.0,0.00024439,7]
[425147052,1781549455000,-235.1,0.00024324,2]
[425147059,1781549455000,-3558.0,0.00024698,2]
[425147068,1781549455000,-1320.73415387,0.00025,2]
[425147056,1781549455000,-325.98,0.00024658,2]
[425147063,1781549455000,-614.7,0.00024715,7]
[425147074,1781549455000,-222.0,0.00025,2]
[425147075,1781549455000,-222.0,0.00025,2]
[425147066,1781549455000,-412.0,0.00025,2]
[425147064,1781549455000,-298.5,0.00024886,2]
[425147065,1781549455000,-1388.0,0.00025,2]
[425147069,1781549455000,-191.0,0.00025,2]
[425147067,1781549455000,-263.80448742,0.00025,2]
[425147072,1781549455000,-235.0,0.00025,2]
[425147073,1781549455000,-222.0,0.00025,2]
[425147070,1781549455000,-229.1627363,0.00025,2]
[425147043,1781549455000,-2876.62,0.00024174,2]
[425147060,1781549455000,-150.0,0.00024698,2]
[425147045,1781549455000,-103336.39,0.00024174,2]
[425147028,1781549455000,-219.718659,0.00024,2]
[425147042,1781549455000,-500.0,0.00024173,2]
[425147022,1781549455000,-177.82283,0.00023597,14]
[425147021,1781549455000,-235.91023219,0.0002342,2]
[425147023,1781549455000,-535.0,0.00023681,2]
[425147018,1781549455000,-175.0,0.00023014,7]
[425147020,1781549455000,-151.0,0.00023323,7]
[425147016,1781549455000,-256.0,0.00023,2]
[425147017,1781549455000,-220.0,0.00023,2]
[425147019,1781549455000,-166.08457987,0.0002326,21]
[425147015,1781549455000,-229.0,0.00023,2]
[425147025,1781549455000,-14872.75535085,0.00023738,7]
[425147035,1781549455000,-229.0,0.00024,2]
[425147027,1781549455000,-1051.2935622,0.00023958,2]
[425147024,1781549455000,-5635.72041873,0.00023738,7]
[425147044,1781549455000,-800.53,0.00024174,2]
[425147026,1781549455000,-268.0,0.00023895,5]
[425147071,1781549455000,-272.0,0.00025,2]
[425147031,1781549455000,-404.0,0.00024,2]
[425147033,1781549455000,-1311.0,0.00024,2]
[425147032,1781549455000,-247.0,0.00024,2]
[425147034,1781549455000,-189.0,0.00024,2]
[425147030,1781549455000,-164.0,0.00024,2]
[425147038,1781549455000,-150.0,0.00024,2]
[425147049,1781549455000,-151.0,0.00024235,7]
[425147048,1781549455000,-726.16259651,0.00024179,2]
[425147039,1781549455000,-919.08997146,0.00024063,2]
[425147041,1781549455000,-271.8,0.0002411,2]
[425147037,1781549455000,-220.0,0.00024,2]
[425147040,1781549455000,-276.77,0.0002411,2]
[425147029,1781549455000,-1372.0,0.00024,2]
[425147076,1781549455000,-222.0,0.00025,2]
[425147036,1781549455000,-256.0,0.00024,2]
[425147080,1781549455000,-222.0,0.00025,2]
[425147109,1781549455000,-500.0,0.00025785,2]
[425147108,1781549455000,-500.0,0.00025785,2]
[425147110,1781549455000,-500.0,0.00025785,2]
[425147116,1781549455000,-500.0,0.00025785,2]
[425147127,1781549455000,-448.0,0.00026193,10]
[425147123,1781549455000,-103336.39,0.00025786,2]
[425147117,1781549455000,-500.0,0.00025785,2]
[425147125,1781549455000,-1051.2935622,0.00025969,2]
[425147119,1781549455000,-500.0,0.00025785,2]
[425147121,1781549455000,-2876.62,0.00025786,2]
[425147126,1781549455000,-197.69,0.00026027,7]
[425147118,1781549455000,-500.0,0.00025785,2]
[425147115,1781549455000,-500.0,0.00025785,2]
[425147111,1781549455000,-500.0,0.00025785,2]
[425147120,1781549455000,-304.10115874,0.00025785,2]
[425147124,1781549455000,-278.02,0.00025786,2]
[425147129,1781549455000,-235.1,0.00026296,2]
[425147139,1781549455000,-254.96792827,0.00027397,2]
[425147134,1781549455000,-176.68323437,0.0002734,7]
[425147138,1781549455000,-662.0,0.00027397,2]
[425147133,1781549455000,-164.35802621,0.00027337,7]
[425147131,1781549455000,-1415.81536338,0.00027193,2]
[425147128,1781549455000,-205.15823594,0.00026259,4]
[425147137,1781549455000,-182.92866877,0.00027346,2]
[425147130,1781549455000,-285.0,0.00026849,10]
[425147136,1781549455000,-174.64529875,0.00027346,7]
[425147135,1781549455000,-448.0,0.00027342,10]
[425147078,1781549455000,-222.0,0.00025,2]
[425147122,1781549455000,-800.53,0.00025786,2]
[425147112,1781549455000,-500.0,0.00025785,2]
[425147132,1781549455000,-1053.886331,0.0002728,14]
[425147106,1781549455000,-500.0,0.00025785,2]
[425147107,1781549455000,-500.0,0.00025785,2]
[425147077,1781549455000,-222.0,0.00025,2]
[425147082,1781549455000,-222.0,0.00025,2]
[425147081,1781549455000,-222.0,0.00025,2]
[425147083,1781549455000,-1415.81536338,0.00025034,2]
[425147088,1781549455000,-1833.0,0.00025233,2]
[425147084,1781549455000,-358.0,0.00025044,5]
[425147079,1781549455000,-222.0,0.00025,2]
[425147086,1781549455000,-2000.0,0.00025233,2]
[425147085,1781549455000,-206.0,0.00025073,2]
[425147090,1781549455000,-500.0,0.00025785,2]
[425147101,1781549455000,-500.0,0.00025785,2]
[425147089,1781549455000,-241.53,0.00025644,2]
[425147100,1781549455000,-500.0,0.00025785,2]
[425147087,1781549455000,-2000.0,0.00025233,2]
[425147097,1781549455000,-500.0,0.00025785,2]
[425147114,1781549455000,-500.0,0.00025785,2]
[425147093,1781549455000,-500.0,0.00025785,2]
[425147102,1781549455000,-500.0,0.00025785,2]
[425147105,1781549455000,-500.0,0.00025785,2]
[425147113,1781549455000,-500.0,0.00025785,2]
[425147104,1781549455000,-500.0,0.00025785,2]
[425147099,1781549455000,-500.0,0.00025785,2]
[425147103,1781549455000,-500.0,0.00025785,2]
[425147098,1781549455000,-500.0,0.00025785,2]
[425147095,1781549455000,-500.0,0.00025785,2]
[425147094,1781549455000,-500.0,0.00025785,2]
[425147096,1781549455000,-500.0,0.00025785,2]
[425147092,1781549455000,-500.0,0.00025785,2]
[425147091,1781549455000,-500.0,0.00025785,2]
[425147159,1781549456000,-438.622038,0.000274,14]
[425147163,1781549456000,-1078.401068,0.00027558,14]
[425147160,1781549456000,-614.7,0.00027431,7]
[425147165,1781549456000,-191.7,0.00027671,30]
[425147161,1781549456000,-500.0,0.000275,7]
[425147162,1781549456000,-317.56,0.000275,7]
[425147167,1781549456000,-166.73,0.00027671,30]
[425147169,1781549456000,-191.7,0.00027671,30]
[425147175,1781549456000,-435.622038,0.000277,14]
[425147177,1781549456000,-662.0,0.00027789,2]
[425147168,1781549456000,-166.72,0.00027671,30]
[425147166,1781549456000,-166.73,0.00027671,30]
[425147155,1781549456000,-549.622038,0.000274,7]
[425147171,1781549456000,-6078.0,0.00027698,2]
[425147176,1781549456000,-441.622038,0.000277,14]
[425147156,1781549456000,-462.7,0.000274,7]
[425147143,1781549456000,-500.0,0.00027397,15]
[425147164,1781549456000,-662.0,0.00027593,2]
[425147174,1781549456000,-441.622038,0.000277,7]
[425147142,1781549456000,-500.0,0.00027397,15]
[425147141,1781549456000,-500.0,0.00027397,15]
[425147140,1781549456000,-500.0,0.00027397,15]
[425147144,1781549456000,-501.13146997,0.00027397,15]
[425147146,1781549456000,-1500.0,0.00027397,2]
[425147149,1781549456000,-18822.16,0.00027397,10]
[425147157,1781549456000,-438.622038,0.000274,7]
[425147150,1781549456000,-15685.13,0.00027397,10]
[425147145,1781549456000,-155.574181,0.00027397,2]
[425147148,1781549456000,-22586.59,0.00027397,10]
[425147154,1781549456000,-602.64,0.000274,7]
[425147153,1781549456000,-176.03185233,0.00027397,3]
[425147151,1781549456000,-614.08,0.00027397,30]
[425147152,1781549456000,-1030.15,0.00027397,30]
[425147158,1781549456000,-549.622038,0.000274,14]
[425147147,1781549456000,-325.98,0.00027397,2]
[425147172,1781549456000,-3645.0,0.00027698,2]
[425147178,1781549456000,-438.622038,0.000279,7]
[425147173,1781549456000,-435.622038,0.000277,7]
[425147196,1781549456000,-1332.6,0.000285,30]
[425147194,1781549456000,-150.0,0.00028493,2]
[425147197,1781549456000,-438.622038,0.000285,7]
[425147201,1781549456000,-438.622038,0.000285,14]
[425147212,1781549456000,-328.71605242,0.00028629,7]
[425147202,1781549456000,-213.68027958,0.000285,2]
[425147207,1781549456000,-596.1276553,0.000285,2]
[425147210,1781549456000,-661.99,0.00028571,2]
[425147206,1781549456000,-596.12765532,0.000285,2]
[425147208,1781549456000,-596.1276553,0.000285,2]
[425147211,1781549456000,-439.0,0.00028574,2]
[425147204,1781549456000,-541.13529367,0.000285,2]
[425147205,1781549456000,-541.13529367,0.000285,2]
[425147209,1781549456000,-500.0,0.00028539,16]
[425147170,1781549456000,-3558.0,0.00027698,2]
[425147195,1781549456000,-150.0,0.00028493,2]
[425147199,1781549456000,-1384.8553474,0.000285,2]
[425147203,1781549456000,-541.13529369,0.000285,2]
[425147192,1781549456000,-661.99,0.00028376,2]
[425147179,1781549456000,-438.622038,0.000279,14]
[425147198,1781549456000,-1384.85534741,0.000285,2]
[425147180,1781549456000,-1051.2935622,0.00027981,2]
[425147185,1781549456000,-462.7,0.000282,7]
[425147188,1781549456000,-435.622038,0.000282,14]
[425147187,1781549456000,-441.622038,0.000282,7]
[425147184,1781549456000,-602.64,0.000282,7]
[425147181,1781549456000,-662.0,0.00027984,2]
[425147182,1781549456000,-187.73196446,0.00028065,2]
[425147183,1781549456000,-661.99,0.0002818,2]
[425147191,1781549456000,-175.675203,0.00028319,14]
[425147190,1781549456000,-235.1,0.00028267,2]
[425147189,1781549456000,-441.622038,0.000282,14]
[425147193,1781549456000,-439.0,0.00028385,2]
[425147186,1781549456000,-435.622038,0.000282,7]
[425147200,1781549456000,-1384.8553474,0.000285,2]
[425147251,1781549457000,-1149.43,0.00028797,7]
[425147250,1781549457000,-497.23,0.00028797,7]
[425147249,1781549457000,-581.87,0.00028797,7]
[425147244,1781549457000,-189.95,0.00028759,7]
[425147246,1781549457000,-661.99,0.00028767,30]
[425147247,1781549457000,-189.95,0.0002879,30]
[425147248,1781549457000,-441.46,0.00028797,7]
[425147245,1781549457000,-661.99,0.00028767,2]
[425147254,1781549457000,-435.622038,0.000288,7]
[425147242,1781549457000,-189.95,0.00028727,2]
[425147255,1781549457000,-441.622038,0.000288,7]
[425147252,1781549457000,-214.11,0.000288,2]
[425147264,1781549457000,-189.95,0.00028885,30]
[425147258,1781549457000,-393.0,0.00028802,2]
[425147256,1781549457000,-435.622038,0.000288,14]
[425147260,1781549457000,-1606.37,0.00028819,2]
[425147261,1781549457000,-2166.67,0.00028819,2]
[425147259,1781549457000,-187.0,0.00028815,2]
[425147257,1781549457000,-441.622038,0.000288,14]
[425147267,1781549457000,-500.0,0.00028896,17]
[425147262,1781549457000,-189.95,0.00028822,2]
[425147266,1781549457000,-500.0,0.00028896,17]
[425147265,1781549457000,-726.16259651,0.00028889,2]
[425147243,1781549457000,-439.0,0.00028751,2]
[425147253,1781549457000,-462.7,0.000288,7]
[425147241,1781549457000,-358.0,0.0002872,10]
[425147221,1781549457000,-353.36646875,0.00028633,7]
[425147239,1781549457000,-688.923669,0.00028704,14]
[425147263,1781549457000,-189.95,0.00028854,7]
[425147214,1781549457000,-441.46,0.0002863,30]
[425147224,1781549457000,-189.95,0.00028633,2]
[425147225,1781549457000,-183.24,0.00028633,2]
[425147217,1781549457000,-497.23,0.0002863,30]
[425147215,1781549457000,-1606.37,0.0002863,30]
[425147216,1781549457000,-581.87,0.0002863,30]
[425147213,1781549457000,-226.11,0.0002863,2]
[425147218,1781549457000,-2166.67,0.0002863,30]
[425147223,1781549457000,-151.44861078,0.00028633,7]
[425147220,1781549457000,-401.14229915,0.0002863,25]
[425147222,1781549457000,-156.61425118,0.00028633,7]
[425147219,1781549457000,-1149.43,0.0002863,30]
[425147226,1781549457000,-349.2905975,0.00028638,7]
[425147236,1781549457000,-439.0,0.00028675,2]
[425147235,1781549457000,-183.24,0.00028664,7]
[425147229,1781549457000,-206.4099863,0.00028638,5]
[425147237,1781549457000,-189.95,0.00028696,30]
[425147227,1781549457000,-150.25079925,0.00028638,7]
[425147228,1781549457000,-171.46954952,0.00028638,7]
[425147230,1781549457000,-365.85733755,0.00028638,2]
[425147232,1781549457000,-1606.37,0.00028653,7]
[425147233,1781549457000,-2166.67,0.00028653,7]
[425147234,1781549457000,-189.95,0.00028664,7]
[425147238,1781549457000,-160.0,0.00028704,14]
[425147240,1781549457000,-1217.847339,0.00028704,14]
[425147269,1781549457000,-500.0,0.00028896,17]
[425147231,1781549457000,-439.0,0.00028652,2]
[425147268,1781549457000,-500.0,0.00028896,17]
[425147296,1781549457000,-420.96904273,0.00029,2]
[425147323,1781549457000,-404.0,0.00029144,30]
[425147301,1781549457000,-600.0,0.00029,2]
[425147300,1781549457000,-165.62953097,0.00029,2]
[425147305,1781549457000,-1762.47546,0.00029,2]
[425147315,1781549457000,-441.46,0.00029132,30]
[425147306,1781549457000,-1762.47546,0.00029,2]
[425147304,1781549457000,-1762.47546,0.00029,2]
[425147311,1781549457000,-189.95,0.00029075,30]
[425147308,1781549457000,-1762.47549,0.00029,2]
[425147307,1781549457000,-1762.47546,0.00029,2]
[425147309,1781549457000,-189.95,0.00029011,2]
[425147314,1781549457000,-300.0,0.0002913,20]
[425147313,1781549457000,-189.95,0.00029106,2]
[425147310,1781549457000,-189.95,0.00029043,7]
[425147312,1781549457000,-317.56,0.000291,7]
[425147317,1781549457000,-497.23,0.00029132,30]
[425147316,1781549457000,-581.87,0.00029132,30]
[425147318,1781549457000,-1149.43,0.00029132,30]
[425147319,1781549457000,-189.95,0.00029138,7]
[425147320,1781549457000,-1372.0,0.00029144,30]
[425147324,1781549457000,-151.0,0.00029144,30]
[425147321,1781549457000,-154.0,0.00029144,30]
[425147322,1781549457000,-159.0,0.00029144,30]
[425147279,1781549457000,-1149.43,0.00028964,2]
[425147297,1781549457000,-500.0,0.00029,2]
[425147295,1781549457000,-165.96112164,0.00029,2]
[425147325,1781549457000,-154.0,0.00029144,30]
[425147302,1781549457000,-438.622038,0.00029,7]
[425147298,1781549457000,-500.0,0.00029,2]
[425147270,1781549457000,-500.0,0.00028896,17]
[425147276,1781549457000,-441.46,0.00028964,2]
[425147277,1781549457000,-581.87,0.00028964,2]
[425147273,1781549457000,-189.95,0.00028917,2]
[425147274,1781549457000,-1296.68,0.00028946,7]
[425147271,1781549457000,-602.64,0.000289,7]
[425147272,1781549457000,-200.0,0.000289,2]
[425147275,1781549457000,-189.95,0.00028948,7]
[425147280,1781549457000,-189.95,0.0002898,30]
[425147282,1781549457000,-2166.67,0.00028986,30]
[425147283,1781549457000,-500.0,0.00029,2]
[425147284,1781549457000,-500.0,0.00029,2]
[425147278,1781549457000,-497.23,0.00028964,2]
[425147291,1781549457000,-500.0,0.00029,2]
[425147281,1781549457000,-1606.37,0.00028986,30]
[425147294,1781549457000,-500.0,0.00029,2]
[425147303,1781549457000,-438.622038,0.00029,14]
[425147293,1781549457000,-500.0,0.00029,2]
[425147290,1781549457000,-500.0,0.00029,2]
[425147292,1781549457000,-500.0,0.00029,2]
[425147288,1781549457000,-500.0,0.00029,2]
[425147287,1781549457000,-500.0,0.00029,2]
[425147289,1781549457000,-500.0,0.00029,2]
[425147285,1781549457000,-500.0,0.00029,2]
[425147286,1781549457000,-500.0,0.00029,2]
[425147299,1781549457000,-248.82,0.00029,2]
[425147351,1781549458000,-661.99,0.0002939,30]
[425147354,1781549458000,-250.0,0.00029466,13]
[425147361,1781549458000,-212.18288063,0.00029494,7]
[425147352,1781549458000,-500.0,0.00029395,18]
[425147355,1781549458000,-441.46,0.00029467,2]
[425147356,1781549458000,-581.87,0.00029467,2]
[425147358,1781549458000,-1149.43,0.00029467,2]
[425147357,1781549458000,-497.23,0.00029467,2]
[425147360,1781549458000,-530.04970312,0.00029494,7]
[425147359,1781549458000,-493.07407863,0.00029491,7]
[425147370,1781549458000,-548.78600632,0.000295,2]
[425147364,1781549458000,-282.49216196,0.00029494,7]
[425147374,1781549458000,-438.622038,0.000296,14]
[425147363,1781549458000,-313.22850237,0.00029494,7]
[425147372,1781549458000,-150.0,0.00029534,2]
[425147366,1781549458000,-523.93589625,0.000295,7]
[425147369,1781549458000,-412.81997261,0.000295,5]
[425147367,1781549458000,-300.50159849,0.000295,7]
[425147368,1781549458000,-342.93909905,0.000295,7]
[425147353,1781549458000,-462.7,0.000294,7]
[425147365,1781549458000,-302.89722157,0.00029494,7]
[425147362,1781549458000,-266.20869122,0.00029494,7]
[425147347,1781549458000,-435.622038,0.000293,14]
[425147337,1781549458000,-189.95,0.00029201,2]
[425147339,1781549458000,-163.21,0.00029212,17]
[425147373,1781549458000,-438.622038,0.000296,7]
[425147326,1781549458000,-247.0,0.00029147,30]
[425147327,1781549458000,-1311.0,0.00029147,30]
[425147329,1781549458000,-229.0,0.00029147,30]
[425147334,1781549458000,-1606.37,0.00029152,7]
[425147335,1781549458000,-2166.67,0.00029152,7]
[425147330,1781549458000,-256.0,0.00029147,30]
[425147328,1781549458000,-189.0,0.00029147,30]
[425147332,1781549458000,-153.0,0.00029147,30]
[425147331,1781549458000,-220.0,0.00029147,30]
[425147348,1781549458000,-441.622038,0.000293,14]
[425147333,1781549458000,-1561.0,0.00029147,30]
[425147336,1781549458000,-189.95,0.00029169,30]
[425147349,1781549458000,-200.0,0.0002933,20]
[425147340,1781549458000,-190.1,0.00029232,7]
[425147350,1781549458000,-1415.81536338,0.00029352,2]
[425147342,1781549458000,-581.87,0.00029299,7]
[425147341,1781549458000,-441.46,0.00029299,7]
[425147344,1781549458000,-1149.43,0.00029299,7]
[425147343,1781549458000,-497.23,0.00029299,7]
[425147345,1781549458000,-435.622038,0.000293,7]
[425147346,1781549458000,-441.622038,0.000293,7]
[425147338,1781549458000,-291.22,0.00029212,17]
[425147371,1781549458000,-602.64,0.000295,7]
[425147383,1781549458000,-500.0,0.00029808,14]
[425147377,1781549458000,-497.23,0.00029634,30]
[425147410,1781549458000,-6717.21522335,0.000299,2]
[425147406,1781549458000,-6717.21522335,0.000299,2]
[425147407,1781549458000,-6717.21522335,0.000299,2]
[425147403,1781549458000,-6717.21522335,0.000299,2]
[425147405,1781549458000,-441.622038,0.000299,14]
[425147408,1781549458000,-6717.21522335,0.000299,2]
[425147409,1781549458000,-6717.21522335,0.000299,2]
[425147412,1781549458000,-340.0,0.00029937,2]
[425147413,1781549458000,-340.0,0.00029937,2]
[425147411,1781549458000,-6717.21522335,0.000299,2]
[425147404,1781549458000,-435.622038,0.000299,14]
[425147414,1781549458000,-340.0,0.00029937,2]
[425147417,1781549458000,-340.0,0.00029937,2]
[425147419,1781549458000,-340.0,0.00029937,2]
[425147375,1781549458000,-2000.0,0.00029626,7]
[425147415,1781549458000,-340.0,0.00029937,2]
[425147420,1781549458000,-340.0,0.00029937,2]
[425147424,1781549458000,-340.0,0.00029937,2]
[425147422,1781549458000,-340.0,0.00029937,2]
[425147421,1781549458000,-340.0,0.00029937,2]
[425147423,1781549458000,-340.0,0.00029937,2]
[425147425,1781549458000,-172.35727228,0.00029937,2]
[425147418,1781549458000,-340.0,0.00029937,2]
[425147402,1781549458000,-6717.21522335,0.000299,2]
[425147416,1781549458000,-340.0,0.00029937,2]
[425147401,1781549458000,-6717.21522342,0.000299,2]
[425147400,1781549458000,-441.622038,0.000299,7]
[425147376,1781549458000,-441.46,0.00029634,30]
[425147385,1781549458000,-150.0,0.00029808,14]
[425147378,1781549458000,-57346.08228156,0.000297,2]
[425147384,1781549458000,-500.0,0.00029808,14]
[425147379,1781549458000,-500.0,0.00029763,19]
[425147381,1781549458000,-150.0,0.00029808,14]
[425147380,1781549458000,-500.0,0.00029763,19]
[425147388,1781549458000,-500.0,0.00029808,14]
[425147398,1781549458000,-348.0,0.00029886,30]
[425147382,1781549458000,-150.0,0.00029808,14]
[425147390,1781549458000,-500.0,0.00029808,14]
[425147399,1781549458000,-435.622038,0.000299,7]
[425147387,1781549458000,-205.12181795,0.00029808,14]
[425147397,1781549458000,-1257.78,0.00029815,7]
[425147392,1781549458000,-500.0,0.00029808,14]
[425147393,1781549458000,-400.93207485,0.00029808,14]
[425147386,1781549458000,-500.0,0.00029808,14]